bitfinex-derivatives/quotes_ETHF0:USTF0_20250214
["timestamp","ask_amount","ask_price","bid_price","bid_amount"]
[1739504251644,0.00552034,2700.2,2700.1,0.7406]
[1739504253134,1.633,2700.5,2700.2,0.74055]
[1739504253335,5.05864,2701.1,2700.4,3.2078]
[1739504253541,0.74048,2700.6,2700.4,3.2078]
[1739504253836,1.633,2700.9,2700.4,3.2078]
[1739504254040,1.632,2701.0,2700.4,3.2078]
[1739504254234,2.37236,2701.0,2700.7,3.2078]
[1739504254433,2.3739327,2701.0,2700.8,0.5827]
[1739504254640,2.3739327,2701.0,2700.9,0.5442]
[1739504255237,0.7419327,2701.0,2700.9,0.5442]
[1739504255437,1.6355727,2701.0,2700.9,0.5442]
[1739504255841,0.0015727,2701.0,2700.9,0.5442]
[1739504256043,1.6345727,2701.0,2700.9,0.5442]
[1739504256535,1.6345727,2701.0,2700.9,1.1363]
[1739504257945,2.3749227,2701.0,2700.9,1.1363]
[1739504259641,2.3749227,2701.0,2700.8,0.5827]
[1739504259642,0.74038,2700.9,2700.8,0.5827]
[1739504261843,1.6345727,2701.0,2700.8,0.5827]
[1739504262342,1.6345727,2701.0,2700.9,1.0996]
[1739504263244,2.3749227,2701.0,2700.9,1.0996]
[1739504263431,0.74038,2700.9,2700.8,0.5827]
[1739504263835,0.5631,2700.9,2700.7,3.2078]
[1739504264037,0.5914,2700.8,2700.4,3.2078]
[1739504264339,0.74054,2700.4,2700.1,3.2078]
[1739504264541,2.37354,2700.4,2700.1,3.2078]
[1739504264742,1.633,2700.4,2700.1,3.94838]
[1739504265040,1.633,2700.4,2700.2,0.74057]
[1739504265436,1.633,2700.4,2700.3,1.6822]
[1739504267847,2.37352,2700.4,2700.3,1.6822]
[1739504268348,1.633,2700.4,2700.3,0.5554]
[1739504269648,0.5914,2700.8,2700.3,0.5554]
[1739504269951,1.33182,2700.8,2700.5,3.94828]
[1739504270149,1.635,2700.7,2700.5,3.94828]
[1739504270347,2.37642,2700.8,2700.5,3.94828]
[1739504271550,1.636,2700.8,2700.5,3.2078]
[1739504272049,0.74044,2700.7,2700.5,3.2078]
[1739504273353,1.636,2700.8,2700.5,3.2078]
[1739504273354,2.37642,2700.8,2700.5,3.94828]
[1739504274155,1.636,2700.8,2700.5,3.2078]
[1739504274445,2.3779327,2701.0,2700.7,0.74042]
[1739504274648,2.3779327,2701.0,2700.8,4.933]
[1739504275047,2.3779327,2701.0,2700.8,5.6734]
[1739504275262,1.6375727,2701.0,2700.8,4.933]
[1739504275446,0.0015727,2701.0,2700.8,5.67339]
[1739504275852,0.7419227,2701.0,2700.8,5.67339]
[1739504276052,0.0015727,2701.0,2700.8,5.67339]
[1739504276752,0.0015727,2701.0,2700.9,0.74038]
[1739504278551,0.74038,2700.9,2700.8,4.933]
[1739504278748,0.0015727,2701.0,2700.8,4.933]
[1739504279054,0.0015727,2701.0,2700.9,0.74038]
[1739504280749,0.0015727,2701.0,2700.8,5.67338]
[1739504280950,0.7419427,2701.0,2700.8,4.933]
[1739504281355,0.7419427,2701.0,2700.8,5.67341]
[1739504281558,0.0015727,2701.0,2700.9,0.74038]
[1739504281753,0.0015727,2701.0,2700.8,4.933]
[1739504282059,0.0015727,2701.0,2700.8,5.67339]
[1739504282060,0.7419427,2701.0,2700.8,5.67339]
[1739504282557,0.0015727,2701.0,2700.8,4.933]
[1739504283054,0.7419227,2701.0,2700.8,5.67339]
[1739504284154,0.7419227,2701.0,2700.8,5.6734]
[1739504284351,0.74038,2700.9,2700.8,4.933]
[1739504284553,0.0015727,2701.0,2700.8,4.933]
[1739504284752,0.7419427,2701.0,2700.8,5.6734]
[1739504285761,0.0015727,2701.0,2700.9,0.74038]
[1739504287156,0.7419427,2701.0,2700.8,5.6734]
[1739504287747,0.0015727,2701.0,2700.9,0.74038]
[1739504288462,0.0015727,2701.0,2700.8,5.67339]
[1739504288759,0.0015727,2701.0,2700.9,0.74038]
[1739504289955,0.74038,2700.9,2700.8,3.2078]
[1739504290656,0.5895727,2701.0,2700.8,3.2078]
[1739504290857,0.74038,2700.9,2700.8,3.2078]
[1739504292555,0.74045,2700.7,2700.5,3.7874]
[1739504293461,1.32202,2700.8,2700.5,3.7874]
[1739504293660,0.5816,2700.8,2700.5,3.7874]
[1739504294159,1.32203,2700.8,2700.5,3.7874]
[1739504294361,0.5816,2700.8,2700.5,3.7874]
[1739504294563,0.74045,2700.7,2700.5,3.7874]
[1739504294765,2.36345,2700.7,2700.5,3.7874]
[1739504295357,1.623,2700.7,2700.5,3.7874]
[1739504295561,0.74046,2700.6,2700.5,3.2078]
[1739504296263,0.74054,2700.4,2700.2,3.2078]
[1739504296461,1.1617,2700.3,2700.2,3.2078]
[1739504296663,1.90224,2700.3,2700.2,3.2078]
[1739504298558,1.1617,2700.3,2700.2,3.2078]
[1739504298760,1.623,2700.7,2700.2,3.2078]
[1739504298958,1.623,2700.7,2700.3,1.33124]
[1739504298959,0.74047,2700.6,2700.3,1.33124]
[1739504299159,1.623,2700.7,2700.3,0.5907]
[1739504299360,0.74047,2700.6,2700.4,0.5592]
[1739504299562,1.1617,2700.8,2700.5,3.2078]
[1739504299767,0.74032,2701.2,2700.5,6.12926796]
[1739504300068,1.6255727,2701.0,2700.8,3.9482]
[1739504300261,1.6255727,2701.0,2700.8,3.2078]
[1739504300458,0.7419327,2701.0,2700.8,3.2078]
[1739504300865,0.0015727,2701.0,2700.8,3.2078]
[1739504301063,0.0015727,2701.0,2700.9,1.1525]
[1739504301369,0.74038,2700.9,2700.8,3.2078]
[1739504302066,0.79838539,2700.9,2700.8,3.2078]
[1739504302570,0.7983887,2700.9,2700.8,3.2078]
[1739504304270,0.74049,2700.5,2700.4,3.2078]
[1739504304561,2.36449,2700.5,2700.4,3.2078]
[1739504304964,1.624,2700.5,2700.1,3.2078]
[1739504305277,1.87173,2700.4,2700.1,3.2078]
[1739504305473,0.5579,2700.4,2700.1,3.94837]
[1739504306162,0.5579,2700.4,2700.1,3.2078]
[1739504306365,1.29842,2700.4,2700.1,3.2078]
[1739504307469,0.74056,2700.3,2700.1,3.2078]
[1739504308069,1.29844,2700.4,2700.1,3.2078]
[1739504308574,0.74055,2700.3,2700.1,3.2078]
[1739504309075,0.5579,2700.4,2700.1,3.94838]
[1739504309368,0.5579,2700.4,2700.1,3.2078]
[1739504309574,0.74056,2700.3,2700.1,3.2078]
[1739504310071,0.74057,2700.2,2700.1,3.2078]
[1739504310776,0.74057,2700.2,2699.2,1.622]
[1739504310777,0.74068,2699.8,2699.7,0.00398234]
[1739504317872,0.74062,2700.1,2699.7,3.95247234]
[1739504318180,1.62,2699.9,2699.8,1.32618]
[1739504318476,1.62,2699.9,2699.8,0.5855]
[1739504319978,2.36065,2699.9,2699.8,0.5855]
[1739504320482,1.62,2699.9,2699.8,1.32618]
[1739504321378,1.622,2700.2,2699.8,1.32618]
[1739504321578,0.7406,2700.1,2700.0,3.2078]
[1739504322375,2.36258,2700.2,2700.0,3.2078]
[1739504322579,0.7406,2700.1,2700.0,3.2078]
[1739504322779,2.36258,2700.2,2700.0,3.94842]
[1739504323184,0.74058,2700.2,2700.0,3.94842]
[1739504323377,1.621,2700.2,2700.1,0.7406]
[1739504323778,2.36157,2700.2,2700.0,3.94841]
[1739504323983,0.74058,2700.2,2700.0,3.94842]
[1739504324483,1.621,2700.4,2700.0,3.2078]
[1739504324781,0.74056,2700.3,2700.2,3.2078]
[1739504325789,0.74054,2700.3,2700.2,3.2078]
[1739504328580,1.619,2700.4,2700.2,3.2078]
[1739504328781,2.35954,2700.4,2700.3,0.5703]
[1739504328984,2.35954,2700.4,2700.3,1.1491]
[1739504332689,1.619,2700.4,2700.3,1.1491]
[1739504332886,2.35952,2700.4,2700.3,1.1491]
[1739504333080,0.74054,2700.3,2700.2,3.2078]
[1739504333284,1.91144,2700.3,2700.2,3.2078]
[1739504333787,1.96946213,2700.3,2700.2,3.2078]
[1739504334086,2.48154,2700.3,2700.2,3.2078]
[1739504334281,2.48154,2700.3,2699.9,0.5585]
[1739504334282,0.74063,2700.0,2699.9,0.5585]
[1739504334490,4.53946796,2700.0,2699.7,3.21178234]
[1739504334682,0.74068,2699.8,2699.7,0.00398234]
[1739504335081,1.32578,2699.8,2699.7,0.00398234]
[1739504336386,0.5851,2699.8,2699.7,0.00398234]
[1739504336685,1.32578,2699.8,2699.7,0.00398234]
[1739504349303,1.618,2700.0,2699.7,0.00398234]
[1739504349508,0.74067,2699.9,2699.7,0.00398234]
[1739504350710,0.74068,2699.9,2699.7,0.00398234]
[1739504350915,1.618,2699.8,2699.7,0.74468234]
[1739504351713,1.618,2699.8,2699.7,0.00398234]
[1739504351905,1.618,2699.8,2699.7,0.74469234]
[1739504352502,1.618,2700.0,2699.7,0.00398234]
[1739504352703,1.618,2700.0,2699.9,3.94845]
[1739504353306,1.618,2700.0,2699.9,5.07035]
[1739504354312,0.74061,2700.1,2699.9,5.07035]
[1739504355315,0.74059,2700.2,2700.0,0.74061]
[1739504355514,1.618,2700.3,2700.1,0.74058]
[1739504355809,1.618,2700.3,2700.2,4.51837]
[1739504356605,1.618,2700.3,2700.2,3.7778]
[1739504357008,2.35854,2700.3,2700.2,3.7778]
[1739504358407,2.35854,2700.3,2700.2,3.2078]
[1739504360717,1.618,2700.3,2700.2,3.2078]
[1739504361113,1.618,2700.3,2700.2,3.94837]
[1739504361509,0.74052,2700.4,2700.2,3.94837]
[1739504362019,0.74052,2700.4,2700.3,0.5454]
[1739504364620,0.0015727,2701.0,2700.3,0.5454]
[1739504364818,0.7419327,2701.0,2700.7,3.94822]
[1739504365119,0.7419327,2701.0,2700.8,0.5807]
[1739504365320,0.7419327,2701.0,2700.9,1.1408]
[1739504367519,0.74038,2700.9,2700.8,0.5807]
[1739504367720,1.84638,2700.9,2700.8,0.5807]
[1739504369019,0.74041,2700.8,2700.7,3.2078]
[1739504369821,4.02746796,2700.9,2700.3,3.2078]
[1739504370015,1.618,2700.8,2700.3,3.2078]
[1739504370221,0.74051,2700.5,2700.3,3.2078]
[1739504370819,1.618,2700.8,2700.3,3.2078]
[1739504371019,1.618,2700.8,2700.3,3.94832]
[1739504371221,0.74047,2700.6,2700.3,3.94832]
[1739504371927,0.74049,2700.6,2700.3,3.2078]
[1739504372125,1.618,2700.8,2700.3,3.2078]
[1739504372322,0.74046,2700.7,2700.3,3.94834]
[1739504372825,0.74046,2700.6,2700.3,3.94834]
[1739504373120,1.618,2700.8,2700.3,3.94834]
[1739504373827,0.74048,2700.6,2700.3,3.94834]
[1739504374823,1.618,2700.8,2700.3,3.2078]
[1739504375016,0.74044,2700.7,2700.4,0.7405]
[1739504375220,1.618,2700.8,2700.3,3.2078]
[1739504375425,0.74048,2700.6,2700.3,3.2078]
[1739504375923,0.74048,2700.6,2700.3,3.94834]
[1739504376115,1.618,2700.8,2700.4,0.7405]
[1739504376318,0.74046,2700.7,2700.4,0.7405]
[1739504376719,0.74047,2700.6,2700.3,3.94833]
[1739504376916,0.74047,2700.6,2700.4,0.74051]
[1739504377319,0.74047,2700.6,2700.3,3.94833]
[1739504377925,0.74047,2700.6,2700.4,3.2078]
[1739504379023,1.618,2700.6,2700.4,3.2078]
[1739504379223,1.618,2700.6,2700.4,3.9483]
[1739504379628,1.618,2700.8,2700.5,0.74047]
[1739504379832,1.618,2700.8,2700.7,3.2078]
[1739504380131,2.35841,2700.8,2700.7,3.2078]
[1739504383126,2.35841,2700.8,2700.7,3.7588]
[1739504383730,1.618,2700.8,2700.7,3.7588]
[1739504384228,1.618,2700.8,2700.7,4.349]
[1739504384428,2.35841,2700.8,2700.7,4.349]
[1739504385131,1.618,2700.8,2700.7,4.349]
[1739504385530,2.35841,2700.8,2700.7,4.349]
[1739504385727,2.35841,2700.8,2700.7,3.2078]
[1739504386927,1.618,2700.8,2700.7,3.2078]
[1739504387329,2.35841,2700.8,2700.7,3.2078]
[1739504389433,0.0015727,2701.0,2700.7,3.2078]
[1739504389631,1.618,2700.9,2700.8,1.1545]
[1739504389835,2.35838,2700.9,2700.8,1.1545]
[1739504390736,0.74041,2700.8,2700.7,3.2078]
[1739504390940,0.567,2700.8,2700.6,0.593]
[1739504391137,0.74043,2700.7,2700.6,0.593]
[1739504391833,0.74049,2700.5,2700.4,3.2078]
[1739504392038,0.74048,2700.6,2700.4,3.2078]
[1739504393330,0.74045,2700.7,2700.4,3.94831]
[1739504394238,0.74049,2700.5,2700.4,3.2078]
[1739504394639,0.74048,2700.6,2700.4,3.2078]
[1739504395243,1.78148798,2700.8,2700.5,0.74048]
[1739504395536,0.74044,2700.7,2700.4,3.94831]
[1739504397043,0.74049,2700.5,2700.4,3.2078]
[1739504398741,2.35749,2700.5,2700.4,3.2078]
[1739504399139,1.617,2700.5,2700.3,1.0878]
[1739504399337,0.74052,2700.4,2700.3,1.0878]
[1739504400442,1.617,2700.5,2700.0,3.8043]
[1739504400637,1.1819,2700.3,2700.0,3.8043]
[1739504400837,2.35751,2700.5,2700.0,3.8043]
[1739504401037,2.35751,2700.5,2700.2,0.74056]
[1739504401238,2.35751,2700.5,2700.3,0.5614]
[1739504401442,2.35751,2700.5,2700.3,1.1202]
[1739504401640,1.617,2700.5,2700.3,1.1202]
[1739504402036,0.74052,2700.4,2700.3,1.1202]
[1739504402238,1.617,2700.5,2700.3,1.1202]
[1739504402541,1.617,2700.5,2700.3,1.86073]
[1739504402738,2.3575,2700.5,2700.3,1.1202]
[1739504403238,1.618,2700.7,2700.5,0.74048]
[1739504403540,1.618,2700.7,2700.6,0.5818]
[1739504403742,2.35843,2700.7,2700.6,0.5818]
[1739504404140,1.618,2700.7,2700.6,0.5818]
[1739504405044,2.35843,2700.7,2700.6,0.5818]
[1739504405239,1.618,2700.7,2700.6,0.5818]
[1739504405439,1.617,2700.8,2700.6,1.32226]
[1739504405840,1.617,2700.8,2700.7,0.5756]
[1739504406641,0.5630727,2701.0,2700.8,0.74039]
[1739504406844,0.0015727,2701.0,2700.9,0.5432]
[1739504407245,0.0015727,2701.0,2700.9,1.28358]
[1739504409542,0.0015727,2701.0,2700.9,41.3432]
[1739504409742,0.0015727,2701.0,2700.9,42.08358]
[1739504411948,0.0015727,2701.0,2700.9,41.3432]
[1739504412144,0.0015727,2701.0,2700.9,1.28358]
[1739504413843,0.0015727,2701.0,2700.9,0.5432]
[1739504414152,0.74041,2700.8,2700.7,3.7834]
[1739504414345,1.6185727,2701.0,2700.7,3.7834]
[1739504414643,1.6185727,2701.0,2700.9,0.74038]
[1739504415046,0.0015727,2701.0,2700.9,0.74038]
[1739504419951,0.0015727,2701.0,2700.7,3.7834]
[1739504420147,0.0015727,2701.0,2700.9,0.74038]
[1739504424946,0.74015,2701.8,2701.0,1.85086]
[1739504425145,2.35715,2701.8,2701.6,3.2078]
[1739504425755,2.35715,2701.8,2701.6,3.7818]
[1739504425756,1.617,2701.8,2701.6,3.7818]
[1739504426349,0.74016,2701.7,2701.6,3.7818]
[1739504427148,2.35714,2701.8,2701.6,3.7818]
[1739504427351,0.73978,2703.1,2702.6,0.7399]
[1739504427648,1.28211,2703.0,2702.6,3.2078]
[1739504428457,1.28212,2703.0,2702.6,3.2078]
[1739504429754,0.5423,2703.0,2702.7,0.73987]
[1739504429951,0.5423,2703.0,2702.6,3.2078]
[1739504430155,0.5423,2703.0,2702.6,3.9477]
[1739504430848,0.5423,2703.0,2702.7,0.73988]
[1739504431050,0.5423,2703.0,2702.6,3.2078]
[1739504431555,0.73987,2702.8,2702.6,3.2078]
[1739504432150,0.5423,2703.0,2702.6,3.2078]
[1739504432551,0.73985,2702.9,2702.6,3.2078]
[1739504432955,0.73988,2702.8,2702.6,3.2078]
[1739504433257,0.5423,2703.0,2702.5,0.00555504]
[1739504433258,0.73991,2702.6,2702.5,0.00555504]
[1739504433653,0.79786612,2702.6,2702.5,0.00555504]
[1739504433960,4.31493408,2702.6,2702.5,0.00555504]
[1739504434350,4.31493971,2702.6,2702.5,0.00555504]
[1739504435259,9.57502971,2702.6,2701.7,3.2078]
[1739504435457,0.74013,2701.8,2701.7,3.2078]
[1739504436753,0.74013,2701.9,2701.7,3.2078]
[1739504437055,0.74013,2701.8,2701.7,3.2078]
[1739504437858,0.74019,2701.6,2701.5,0.00555504]
[1739504438054,2.35619,2701.6,2701.5,0.00555504]
[1739504439453,1.616,2701.6,2701.5,0.00555504]
[1739504440755,2.35619,2701.6,2701.5,0.00555504]
[1739504443057,1.616,2701.6,2701.5,0.74576504]
[1739504444363,1.616,2701.6,2701.5,0.00555504]
[1739504446562,1.61895582,2701.6,2701.5,0.00555504]
[1739504447262,1.61895582,2701.6,2701.5,0.74576504]
[1739504447459,0.00295582,2701.6,2701.5,1.84746504]
[1739504449660,1.616,2702.1,2701.5,1.10725504]
[1739504449859,1.616,2702.4,2702.0,6.12926796]
[1739504450065,1.616,2702.4,2702.3,3.94779]
[1739504450663,1.616,2702.4,2702.3,3.2078]
[1739504450864,2.35597,2702.4,2702.3,3.2078]
[1739504451866,0.74009,2702.0,2701.9,3.2078]
[1739504452766,2.35609,2702.0,2701.9,3.2078]
[1739504453069,0.74019,2701.6,2701.5,0.00555504]
[1739504453367,2.35619,2701.6,2701.5,0.00555504]
[1739504453756,2.41417155,2701.6,2701.5,0.00555504]
[1739504453964,2.35619,2701.6,2701.5,0.00555504]
[1739504454161,2.96757228,2701.6,2701.5,0.00555504]
[1739504455264,2.96757616,2701.6,2701.5,0.00555504]
[1739504457068,2.96757879,2701.6,2701.5,0.00555504]
[1739504458669,2.96757817,2701.6,2701.5,0.00555504]
[1739504459165,2.41517817,2701.6,2701.5,0.00555504]
[1739504459366,2.35719,2701.6,2701.5,0.00555504]
[1739504460472,2.4151768,2701.6,2701.5,0.00555504]
[1739504460771,1.617,2701.6,2701.5,0.00555504]
[1739504460971,0.74018,2701.7,2701.5,0.00555504]
[1739504461275,1.617,2701.6,2701.5,0.74576504]
[1739504461466,3.2078,2702.0,2701.7,0.74016]
[1739504461770,1.617,2701.8,2701.5,4.34925504]
[1739504462479,1.617,2701.8,2701.5,5.08946504]
[1739504463169,1.617,2701.8,2701.6,0.74019]
[1739504463864,1.617,2701.8,2701.5,4.34925504]
[1739504464070,0.74016,2701.7,2701.5,4.34925504]
[1739504464270,2.35715,2701.8,2701.5,5.08945504]
[1739504464479,1.617,2701.8,2701.5,4.34925504]
[1739504464670,1.617,2701.8,2701.6,0.74018]
[1739504464865,1.617,2702.0,2701.7,2.92146796]
[1739504465171,0.74004,2702.2,2701.9,3.9479]
[1739504465370,1.618,2702.3,2701.9,3.2078]
[1739504465574,0.74008,2702.0,2701.9,3.2078]
[1739504465970,1.618,2702.3,2701.9,3.2078]
[1739504466171,0.74005,2702.1,2702.0,0.571]
[1739504466483,1.618,2702.3,2702.0,0.571]
[1739504466775,0.74004,2702.2,2702.0,0.571]
[1739504467169,0.74005,2702.1,2702.0,0.571]
[1739504467775,2.35801,2702.3,2702.0,1.31108]
[1739504468271,0.74005,2702.1,2702.0,0.571]
[1739504470384,1.618,2702.3,2702.0,0.571]
[1739504470576,0.74003,2702.2,2702.0,0.571]
[1739504471081,0.74005,2702.1,2702.0,0.571]
[1739504472979,0.74004,2702.2,2702.0,0.571]
[1739504473385,0.74005,2702.1,2702.0,0.571]
[1739504474991,1.618,2702.3,2702.0,0.571]
[1739504475191,0.74004,2702.2,2702.0,0.571]
[1739504475392,0.74005,2702.2,2702.0,0.571]
[1739504475894,0.74005,2702.1,2702.0,0.571]
[1739504476084,0.74004,2702.2,2702.0,0.571]
[1739504476389,1.616,2702.4,2702.0,3.49246796]
[1739504476591,1.616,2702.5,2702.3,6.86925796]
[1739504477195,1.616,2702.5,2702.3,6.12926796]
[1739504477397,0.00555504,2702.8,2702.3,6.12926796]
[1739504477691,1.616,2702.7,2702.6,3.2078]
[1739504477890,2.35589,2702.7,2702.6,3.2078]
[1739504479592,0.74543504,2702.8,2702.6,3.2078]
[1739504479785,2.36141504,2702.8,2702.7,0.5879]
[1739504482689,0.73989,2702.7,2702.6,3.2078]
[1739504483295,0.73991,2702.6,2702.5,0.5458]
[1739504483787,1.62155504,2702.8,2702.5,0.5458]
[1739504483987,0.73991,2702.6,2702.5,0.5458]
[1739504485291,1.616,2702.6,2702.5,1.28574]
[1739504485589,1.616,2702.7,2702.5,0.5458]
[1739504485898,2.35589,2702.7,2702.6,3.2078]
[1739504486693,1.616,2702.7,2702.6,3.2078]
[1739504487395,1.616,2702.7,2702.6,3.94771]
[1739504488293,2.35589,2702.7,2702.6,3.2078]
[1739504491391,0.73989,2702.7,2702.6,3.2078]
[1739504496790,1.33419,2702.7,2702.6,3.2078]
[1739504503001,0.73997,2702.4,2702.3,3.2078]
[1739504503200,2.35597,2702.4,2702.3,3.2078]
[1739504503901,0.74008,2702.1,2702.0,3.2078]
[1739504505000,0.74002,2702.3,2702.0,3.2078]
[1739504505201,1.616,2702.4,2702.1,0.5864]
[1739504505202,0.74002,2702.2,2702.1,0.5864]
[1739504505402,0.74002,2702.2,2702.1,1.1677]
[1739504506802,1.616,2702.4,2702.1,1.1677]
[1739504506999,0.74001,2702.3,2702.1,1.1677]
[1739504507701,1.616,2702.4,2702.1,1.1677]
[1739504508001,0.74002,2702.2,2702.1,1.1677]
[1739504508198,0.74001,2702.3,2702.1,1.1677]
[1739504508707,1.616,2702.4,2702.1,1.1677]
[1739504509003,2.35595,2702.5,2702.2,0.74001]
[1739504509205,0.73997,2702.4,2702.3,0.5592]
[1739504509404,0.73997,2702.4,2702.1,1.1677]
[1739504509405,0.74001,2702.3,2702.1,1.1677]
[1739504509597,2.7041,2702.5,2702.1,1.1677]
[1739504509793,0.74002,2702.2,2702.1,1.1677]
[1739504510107,0.74005,2702.1,2702.0,3.2078]
[1739504510307,1.616,2702.1,2702.0,3.94787]
[1739504511306,1.84957,2703.0,2702.0,6.12926796]
[1739504511503,0.73991,2702.6,2702.4,3.2078]
[1739504511710,0.73991,2702.6,2702.5,0.5687]
[1739504513512,0.73991,2702.6,2702.4,3.2078]
[1739504513513,0.73994,2702.5,2702.4,3.2078]
[1739504521209,3.21335504,2702.8,2702.4,3.2078]
[1739504521410,0.73992,2702.6,2702.5,0.557]
[1739504522113,2.35589,2702.7,2702.5,0.557]
[1739504522315,2.35589,2702.7,2702.6,0.5598]
[1739504522710,1.616,2702.7,2702.6,0.5598]
[1739504523120,2.35589,2702.7,2702.6,0.5598]
[1739504526416,0.73991,2702.6,2702.5,0.557]
[1739504528309,0.05796315,2702.6,2702.4,3.2078]
[1739504528510,0.73994,2702.5,2702.4,3.2078]
[1739504528921,0.79790624,2702.5,2702.4,3.2078]
[1739504530619,0.73994,2702.5,2702.4,3.2078]
[1739504531218,0.73997,2702.4,2702.3,0.5802]
[1739504531816,0.5771,2702.7,2702.3,0.5802]
[1739504532122,2.35593,2702.6,2702.4,3.2078]
[1739504532520,2.35593,2702.6,2702.5,0.541]
[1739504534320,0.73997,2702.4,2702.3,0.5802]
[1739504535218,0.73996,2702.5,2702.3,0.5802]
[1739504535722,2.35593,2702.6,2702.3,0.5802]
[1739504536419,1.616,2702.6,2702.3,0.5802]
[1739504536821,0.73997,2702.4,2702.3,0.5802]
[1739504537719,1.616,2702.6,2702.3,0.5802]
[1739504537922,2.35592,2702.6,2702.4,3.2078]
[1739504538124,0.73994,2702.5,2702.4,3.2078]
[1739504538719,1.616,2702.6,2702.4,3.2078]
[1739504539028,0.73994,2702.5,2702.4,3.2078]
[1739504539729,1.616,2702.6,2702.4,3.2078]
[1739504540030,2.35592,2702.6,2702.4,3.2078]
[1739504540420,0.73992,2702.6,2702.4,3.2078]
[1739504540620,0.7399,2702.7,2702.4,3.94775]
[1739504540829,1.616,2702.6,2702.4,3.94775]
[1739504541026,2.35592,2702.6,2702.4,3.2078]
[1739504541329,2.35593,2702.6,2702.4,3.2078]
[1739504541523,0.73994,2702.5,2702.4,3.2078]
[1739504545528,2.35593,2702.6,2702.4,3.2078]
[1739504545728,1.615,2702.5,2702.4,3.94776]
[1739504546535,0.73991,2702.6,2702.4,3.2078]
[1739504546928,0.73994,2702.6,2702.4,3.2078]
[1739504547231,1.62055504,2702.8,2702.4,3.2078]
[1739504547626,0.73992,2702.6,2702.4,3.2078]
[1739504548128,1.62055504,2702.8,2702.4,3.2078]
[1739504548532,0.73994,2702.5,2702.4,3.2078]
[1739504548932,1.62055504,2702.8,2702.4,3.2078]
[1739504549130,0.73991,2702.7,2702.4,3.94776]
[1739504549530,0.73992,2702.6,2702.4,3.2078]
[1739504549928,0.73991,2702.7,2702.4,3.2078]
[1739504550125,1.62055504,2702.8,2702.4,3.94776]
[1739504550330,0.73992,2702.6,2702.4,3.94776]
[1739504550728,1.62055504,2702.8,2702.4,3.94776]
[1739504550924,0.73992,2702.6,2702.4,3.94776]
[1739504551335,1.62055504,2702.8,2702.4,3.2078]
[1739504551534,0.73994,2702.5,2702.4,3.2078]
[1739504555336,2.09413501,2702.8,2702.4,3.2078]
[1739504555539,0.73993,2702.6,2702.4,3.2078]
[1739504555731,0.73994,2702.5,2702.4,3.2078]
[1739504556534,1.62055504,2702.8,2702.4,3.2078]
[1739504556839,0.73993,2702.6,2702.4,3.2078]
[1739504557537,0.73994,2702.5,2702.4,3.2078]
[1739504561630,0.73993,2702.6,2702.4,3.2078]
[1739504563030,0.73991,2702.7,2702.4,3.94776]
[1739504566338,0.73991,2702.7,2702.4,3.2078]
[1739504566534,0.73991,2702.7,2702.5,0.73994]
[1739504566738,1.62055504,2702.8,2702.4,3.94775]
[1739504566939,0.7399,2702.7,2702.4,3.94775]
[1739504568644,0.7399,2702.7,2702.5,0.73994]
[1739504569043,0.7399,2702.7,2702.6,0.5496]
[1739504569341,2.36042504,2702.8,2702.6,1.2895]
[1739504569541,2.36042504,2702.8,2702.7,3.2078]
[1739504569936,1.62055504,2702.8,2702.7,3.77]
[1739504570148,0.00555504,2702.8,2702.7,5.07190779]
[1739504570443,0.00555504,2702.8,2702.7,5.81179779]
[1739504570745,0.00555504,2702.8,2702.7,5.07190779]
[1739504570944,0.00555504,2702.8,2702.7,5.81179779]
[1739504571149,0.00555504,2702.8,2702.7,5.07190779]
[1739504571444,0.74541504,2702.8,2702.7,5.07190779]
[1739504571846,0.74541504,2702.8,2702.7,3.77]
[1739504572545,0.74541504,2702.8,2702.7,3.2078]
[1739504572747,1.33371504,2702.8,2702.7,3.2078]
[1739504574034,0.73989,2702.7,2702.6,0.5496]
[1739504574545,0.73994,2702.5,2702.4,3.7691]
[1739504574748,0.73994,2702.5,2702.4,4.3553]
[1739504575250,0.73993,2702.6,2702.4,4.3553]
[1739504575446,0.73994,2702.5,2702.4,4.3553]
[1739504576541,0.73992,2702.6,2702.4,4.3553]
[1739504576741,0.73991,2702.6,2702.4,4.3553]
[1739504577744,2.35494,2702.5,2702.4,3.794]
[1739504577940,2.94404,2702.5,2702.4,3.794]
[1739504578341,3.41768847,2702.5,2702.4,3.794]
[1739504579245,3.41768847,2702.5,2702.4,3.2078]
[1739504580547,2.94404,2702.5,2702.4,3.2078]
[1739504583048,2.2041,2702.5,2702.4,3.2078]
[1739504583448,2.94404,2702.5,2702.4,3.2078]
[1739504588058,0.74,2702.3,2702.2,0.5425]
[1739504589260,1.85230779,2702.4,2702.2,0.5425]
[1739504589458,0.74,2702.3,2702.2,0.5425]
[1739504593656,0.79797065,2702.3,2702.2,0.5425]
[1739504594467,0.74,2702.3,2702.2,0.5425]
[1739504595163,0.79797032,2702.3,2702.2,0.5425]
[1739504595364,0.05797032,2702.3,2702.1,3.7982]
[1739504595562,2.04192779,2702.2,2702.1,3.7982]
[1739504596861,2.04192779,2702.2,2702.1,0.5904]
[1739504598574,0.74011,2701.9,2701.8,3.7811]
[1739504598864,2.91690779,2702.1,2701.9,0.7401]
[1739504599267,2.91690779,2702.1,2702.0,0.5675]
[1739504601262,3.65695779,2702.1,2702.0,0.5675]
[1739504602070,1.30190779,2702.1,2702.0,0.5675]